bitfinex/quotes_ETHUSD_20250220
["timestamp","ask_amount","ask_price","bid_price","bid_amount"]
[1740036193474,3.66463,2728.8,2728.4,0.8218]
[1740036194379,6.66435,2729.0,2728.4,0.8218]
[1740036194579,0.7546,2729.2,2728.7,0.8177]
[1740036194779,3.66425,2729.1,2728.8,0.261]
[1740036194979,7.32854,2729.1,2728.8,0.261]
[1740036195910,3.66425,2729.1,2728.8,0.261]
[1740036196706,7.32857,2729.1,2728.8,0.261]
[1740036196908,3.66435,2729.0,2728.8,0.261]
[1740036197217,3.66425,2729.1,2728.8,0.261]
[1740036200589,7.32854,2729.1,2728.8,0.261]
[1740036200790,3.66425,2729.1,2728.8,0.261]
[1740036202023,7.32855,2729.1,2728.8,0.261]
[1740036204428,3.66425,2729.1,2728.8,0.261]
[1740036205026,7.32854,2729.1,2728.8,0.261]
[1740036205330,3.66425,2729.1,2728.8,0.261]
[1740036205531,7.32854,2729.1,2728.8,0.261]
[1740036205739,3.66425,2729.1,2728.8,0.261]
[1740036205950,7.32853,2729.1,2728.8,0.261]
[1740036206113,3.66425,2729.1,2728.8,0.261]
[1740036206732,3.66435,2729.0,2728.8,0.261]
[1740036207524,3.66425,2729.1,2728.8,0.261]
[1740036207707,7.32857,2729.1,2728.8,0.261]
[1740036208233,7.32854,2729.1,2728.8,0.261]
[1740036208611,0.7672,2729.4,2728.8,0.261]
[1740036208812,3.66411,2729.2,2728.8,0.261]
[1740036209008,3.66426,2729.1,2728.8,0.261]
[1740036210339,3.66411,2729.2,2728.8,0.261]
[1740036210631,3.66425,2729.1,2728.8,0.261]
[1740036210832,3.66411,2729.2,2728.8,0.261]
[1740036211020,4.43107,2729.4,2728.8,0.261]
[1740036211226,4.43107,2729.4,2728.9,0.7503]
[1740036211532,3.66394,2729.3,2728.9,0.7503]
[1740036214021,3.66407,2729.2,2728.9,0.7503]
[1740036220872,4.43106,2729.4,2728.9,0.7503]
[1740036221164,3.66386,2729.4,2728.9,4.41477]
[1740036221472,7.32774,2729.4,2728.9,4.41477]
[1740036221641,3.66386,2729.4,2728.9,4.41477]
[1740036223971,4.4333,2729.6,2728.9,5.38314838]
[1740036224171,4.45846,2729.8,2729.3,3.66393]
[1740036224333,3.66358,2729.6,2729.2,0.8281]
[1740036224771,3.66351,2729.7,2729.2,0.8281]
[1740036224972,3.66314,2729.9,2729.3,3.66384]
[1740036225158,3.66314,2729.9,2729.2,3.12146718]
[1740036225472,3.66339,2729.8,2729.2,3.12146718]
[1740036225976,3.66314,2729.9,2729.3,0.763]
[1740036226149,7.32639,2729.9,2729.3,0.763]
[1740036226352,3.66314,2729.9,2729.3,1.80144572]
[1740036226563,3.6634,2729.7,2729.3,1.80144572]
[1740036226758,3.66314,2729.9,2729.3,1.80144572]
[1740036227273,3.66341,2729.7,2729.3,1.80144572]
[1740036227505,3.66348,2729.7,2729.3,1.80144572]
[1740036227637,3.66348,2729.7,2729.4,0.8291]
[1740036229943,7.3264,2729.9,2729.4,2.1724738]
[1740036230458,3.66328,2729.8,2729.4,2.1724738]
[1740036230847,3.66328,2729.8,2729.4,0.8291]
[1740036231180,3.66315,2729.9,2729.4,0.8291]
[1740036231384,3.66341,2729.7,2729.4,0.8291]
[1740036236451,3.66367,2729.5,2729.4,0.8291]
[1740036236767,3.66382,2729.4,2729.1,0.796]
[1740036236950,3.66382,2729.4,2729.3,0.261]
[1740036237149,3.66382,2729.4,2729.1,0.796]
[1740036237345,3.6641,2729.2,2729.0,8.234]
[1740036237550,3.6641,2729.2,2729.1,0.261]
[1740036239167,7.32775,2729.4,2729.1,0.261]
[1740036240086,3.66397,2729.3,2729.1,0.261]
[1740036243463,3.66397,2729.3,2729.0,8.234]
[1740036243668,3.66397,2729.3,2729.2,0.261]
[1740036250503,3.66382,2729.4,2729.2,0.261]
[1740036251088,7.32772,2729.4,2729.2,0.261]
[1740036251591,7.32773,2729.4,2729.2,0.261]
[1740036251778,7.32771,2729.4,2729.2,0.261]
[1740036252299,3.66382,2729.4,2729.2,0.261]
[1740036252999,3.66357,2729.6,2729.3,0.7574]
[1740036255698,3.66301,2730.0,2729.3,1.22566]
[1740036255901,3.66321,2729.9,2729.3,4.88949]
[1740036257016,3.66301,2730.0,2729.4,0.8219]
[1740036257314,3.66301,2730.0,2729.5,0.8219]
[1740036257552,0.7513,2730.1,2729.5,0.8219]
[1740036257813,3.66276,2730.2,2729.6,8.71384438]
[1740036257985,5.24,2730.6,2730.0,2.1473738]
[1740036258188,3.66212,2730.7,2730.2,1.3433738]
[1740036258513,3.66212,2730.7,2730.3,0.7743]
[1740036260004,7.32376,2730.9,2730.3,0.7743]
[1740036260177,3.66185,2730.9,2730.3,0.7743]
[1740036260381,3.66196,2730.8,2730.4,0.57804038]
[1740036265643,5.7902438,2731.0,2730.4,0.57804038]
[1740036265644,4.44687,2731.0,2730.4,0.57804038]
[1740036265792,3.66193,2730.8,2730.5,0.8035]
[1740036271995,3.66208,2730.7,2730.5,0.8035]
[1740036272196,3.66193,2730.8,2730.1,3.92376]
[1740036272197,3.66219,2730.6,2730.2,0.8157]
[1740036272398,3.66219,2730.6,2730.2,1.09433778]
[1740036275914,3.66219,2730.6,2730.3,0.261]
[1740036279231,3.66242,2730.5,2730.3,0.261]
[1740036282544,3.66242,2730.5,2730.4,0.261]
[1740036284144,3.66242,2730.5,2729.9,11.89403]
[1740036284347,3.66255,2730.4,2730.0,1.0833]
[1740036284711,3.6626,2730.3,2730.0,1.0833]
[1740036285312,4.46472,2730.5,2730.0,1.0833]
[1740036285940,3.66242,2730.5,2730.0,1.0833]
[1740036287045,3.66248,2730.4,2730.0,1.0833]
[1740036288012,3.66268,2730.3,2730.0,1.0833]
[1740036292451,3.66268,2730.3,2730.0,0.261]
[1740036292861,3.66281,2730.2,2729.8,0.8244]
[1740036293221,3.66292,2730.1,2729.9,0.261]
[1740036294446,3.66281,2730.2,2729.9,0.261]
[1740036294759,7.32567,2730.2,2729.9,0.261]
[1740036294955,3.66281,2730.2,2729.9,0.261]
[1740036295123,7.32564,2730.2,2729.9,0.261]
[1740036295961,3.66281,2730.2,2729.9,0.261]
[1740036297867,7.32562,2730.2,2729.9,0.261]
[1740036298361,3.66281,2730.2,2729.9,0.261]
[1740036299955,5.24,2730.5,2730.0,0.8096]
[1740036300232,5.24,2730.5,2730.2,0.7735]
[1740036300435,5.24,2730.5,2730.3,3.66257]
[1740036300689,5.24,2730.5,2730.4,0.7735]
[1740036300838,3.6617,2731.0,2730.4,4.43596]
[1740036301644,4.44517,2731.1,2730.4,4.43596]
[1740036302050,4.44517,2731.1,2730.5,3.66225]
[1740036302263,4.44517,2731.1,2730.4,4.43596]
[1740036302477,3.66174,2731.0,2730.4,4.43596]
[1740036302852,3.66183,2730.9,2730.4,4.43596]
[1740036303067,3.66183,2730.9,2730.4,0.7735]
[1740036303445,3.66183,2730.9,2730.4,4.43593]
[1740036304267,4.44515,2731.1,2730.4,4.43593]
[1740036304565,3.66168,2731.0,2730.4,4.43593]
[1740036304773,3.66168,2731.0,2730.4,5.38013238]
[1740036305069,4.44515,2731.1,2730.4,5.38013238]
[1740036305275,4.44515,2731.1,2730.4,9.04249238]
[1740036305635,3.66155,2731.1,2730.4,8.26899238]
[1740036305837,5.24,2731.2,2730.7,4.4553]
[1740036306171,5.24,2731.2,2730.8,0.261]
[1740036307302,8.90142,2731.2,2730.8,0.261]
[1740036307880,3.66157,2731.1,2730.8,0.261]
[1740036308796,3.66179,2730.9,2730.8,0.261]
[1740036310286,3.66193,2730.8,2730.4,0.778]
[1740036310473,3.66193,2730.8,2730.5,0.261]
[1740036310786,3.66206,2730.7,2730.5,0.261]
[1740036311082,3.66206,2730.7,2730.6,0.261]
[1740036326272,3.66206,2730.7,2730.6,1.0746]
[1740036327025,3.66193,2730.8,2730.6,1.0746]
[1740036327189,7.32397,2730.8,2730.6,1.0746]
[1740036327391,3.66206,2730.7,2730.6,1.0746]
[1740036328621,3.66193,2730.8,2730.6,1.0746]
[1740036328946,7.32396,2730.8,2730.6,1.0746]
[1740036329117,3.66193,2730.8,2730.6,1.0746]
[1740036329319,3.66206,2730.7,2730.6,1.0746]
[1740036329615,3.66193,2730.8,2730.6,1.0746]
[1740036330118,3.66206,2730.7,2730.6,0.261]
[1740036337785,0.732399,2730.7,2730.1,0.7941]
[1740036337990,3.66206,2730.7,2730.6,0.261]
[1740036338188,3.66225,2730.6,2730.2,0.261]
[1740036344372,3.66225,2730.6,2730.1,0.7941]
[1740036344578,3.66225,2730.6,2730.3,0.261]
[1740036344942,3.66235,2730.5,2730.3,0.261]
[1740036346150,3.66235,2730.5,2730.4,0.261]
[1740036349068,4.47204,2730.6,2730.4,0.261]
[1740036354247,8.13431,2730.6,2730.4,0.261]
[1740036354448,4.47204,2730.6,2730.4,0.261]
[1740036355295,3.66233,2730.5,2730.4,0.261]
[1740036359087,3.66261,2730.3,2730.2,0.261]
[1740036360788,3.66249,2730.4,2730.2,0.261]
[1740036362712,3.6626,2730.3,2730.2,0.261]
[1740036369799,3.66233,2730.5,2730.2,0.261]
[1740036370100,5.24,2730.7,2730.2,1.0819]
[1740036370401,5.24,2730.7,2730.2,5.585353]
[1740036370559,5.24,2730.7,2730.2,1.922643]
[1740036370759,5.24,2730.7,2730.3,3.6626]
[1740036370985,5.24,2730.7,2730.4,0.8331]
[1740036371177,3.66196,2730.8,2730.4,0.8331]
[1740036371374,3.66196,2730.8,2730.4,1.52718168]
[1740036372771,7.32398,2730.8,2730.4,1.52718168]
[1740036372971,3.6621,2730.7,2730.4,0.8331]
[1740036373398,3.6621,2730.7,2730.2,1.868943]
[1740036373710,5.0056138,2730.6,2730.2,1.0282]
[1740036373882,5.0056138,2730.6,2730.2,0.261]
[1740036374083,3.66247,2730.4,2730.2,0.261]
[1740036374306,5.0056138,2730.6,2730.2,0.261]
[1740036374506,8.6679238,2730.6,2730.2,0.261]
[1740036375273,5.0056138,2730.6,2730.2,0.261]
[1740036375500,8.6679038,2730.6,2730.2,0.261]
[1740036376506,5.0056138,2730.6,2730.2,0.261]
[1740036377607,8.6679138,2730.6,2730.2,0.261]
[1740036378293,5.0056138,2730.6,2730.2,0.261]
[1740036378597,8.6679138,2730.6,2730.2,0.261]
[1740036378804,3.66235,2730.5,2730.2,0.261]
[1740036379797,8.6679138,2730.6,2730.2,0.261]
[1740036380300,3.66234,2730.5,2730.2,0.261]
[1740036391722,3.66249,2730.4,2730.2,0.261]
[1740036392091,3.66273,2730.3,2730.0,0.7672]
[1740036392293,3.66273,2730.3,2730.1,0.261]
[1740036392693,3.66273,2730.2,2730.1,0.261]
[1740036394227,2.1266738,2730.4,2730.1,0.261]
[1740036394228,4.44589,2730.4,2730.1,0.261]
[1740036394906,3.66259,2730.4,2730.1,0.261]
[1740036396417,3.66247,2730.4,2730.1,0.261]
[1740036402735,3.6622,2730.6,2730.1,0.261]
[1740036403034,3.66209,2730.7,2730.2,0.7836]
[1740036404439,3.6622,2730.6,2730.2,0.7836]
[1740036405339,3.66234,2730.5,2730.2,0.7836]
[1740036405539,3.6622,2730.6,2730.2,0.7836]
[1740036406041,7.32449,2730.6,2730.2,0.7836]
[1740036406244,7.32448,2730.6,2730.2,0.7836]
[1740036408046,7.32448,2730.6,2730.0,1.0471]
[1740036408047,3.6627,2730.3,2730.0,1.0471]
[1740036408933,3.66275,2730.2,2730.0,1.0471]
[1740036411448,3.6627,2730.3,2730.0,1.0471]
[1740036411613,7.32541,2730.3,2730.0,1.0471]
[1740036412348,3.66286,2730.1,2729.6,3.23730183]
[1740036412643,3.66286,2730.1,2729.7,1.078]
[1740036412856,3.66304,2730.0,2729.7,1.078]
[1740036414142,3.66304,2730.0,2729.7,0.817]
[1740036414143,7.32616,2730.0,2729.7,0.817]
[1740036414348,3.66327,2729.8,2729.6,3.23730183]
[1740036414542,3.66327,2729.8,2729.7,0.261]
[1740036416522,0.7777,2729.9,2729.7,0.261]
[1740036416850,4.44095,2729.9,2729.7,0.261]
[1740036417148,3.66327,2729.8,2729.7,0.261]
[1740036421375,3.66327,2729.8,2729.6,3.23730183]
[1740036421532,3.66327,2729.8,2729.7,0.261]
[1740036427924,3.66327,2729.8,2729.6,3.23730183]
[1740036427925,3.6634,2729.7,2729.6,3.23730183]
[1740036428151,4.4255,2729.7,2729.6,3.23730183]
[1740036429055,9.6655,2729.7,2729.6,3.23730183]
[1740036429262,12.6655,2729.7,2729.6,3.23730183]
[1740036429445,8.24,2729.7,2729.3,0.261]
[1740036429633,5.0071738,2729.4,2729.3,0.261]
[1740036434963,5.0071738,2729.4,2729.0,8.232]
[1740036435165,3.66421,2729.1,2729.0,8.232]
[1740036435457,7.32829,2729.2,2729.0,8.232]
[1740036435657,7.32829,2729.2,2729.0,8.493]
[1740036435961,3.66421,2729.1,2729.0,8.232]
[1740036437975,3.66434,2729.0,2728.9,0.261]
[1740036439053,5.0077138,2729.0,2728.8,0.261]
[1740036439260,3.66448,2728.9,2728.8,0.261]
[1740036445189,5.7667138,2729.0,2728.8,0.261]
[1740036445485,3.66434,2729.0,2728.8,0.261]
[1740036445693,3.66434,2729.0,2728.9,0.7702]
[1740036446685,5.24,2729.1,2728.9,0.7702]
[1740036447185,5.24,2729.1,2728.9,1.239788]
[1740036447389,5.24,2729.1,2728.9,0.7702]
[1740036448896,5.24,2729.1,2728.9,4.43467]
[1740036450687,5.24,2729.1,2729.0,4.46654]
[1740036451263,5.24,2729.7,2729.1,4.46634]
[1740036451463,5.24,2729.7,2729.3,0.8022]
[1740036452420,5.24,2729.7,2729.5,3.66358]
[1740036452615,5.24,2729.7,2729.6,1.0833]
[1740036457076,5.24,2729.7,2729.6,0.261]
[1740036457278,3.66367,2729.5,2729.1,0.8326]
[1740036457578,3.66367,2729.5,2729.2,0.261]
[1740036458203,3.6634,2729.7,2729.2,0.736787]
[1740036458571,3.66321,2729.9,2729.4,0.831]
[1740036458874,3.66321,2729.9,2729.4,4.49474]
[1740036459189,2.1231738,2730.0,2729.6,3.66345]
[1740036459404,2.1231738,2730.0,2729.4,4.49474]
[1740036459604,3.66316,2729.9,2729.4,5.15223008]
[1740036464005,3.66328,2729.8,2729.4,1.48849008]
[1740036464211,3.66328,2729.8,2729.4,0.831]
[1740036466309,3.66316,2729.9,2729.4,0.831]
[1740036467176,0.7798,2730.0,2729.4,4.49479]
[1740036467399,3.66313,2729.9,2729.4,4.49479]
[1740036467602,3.66302,2730.0,2729.4,4.4947]
[1740036467789,3.66302,2730.0,2729.5,0.44947]
[1740036469217,2.1603738,2730.2,2729.7,0.8224]
[1740036469378,3.66286,2730.1,2729.7,0.8224]
[1740036469908,8.90268,2730.3,2729.7,0.8224]
[1740036470109,3.66277,2730.2,2729.7,4.48576]
[1740036470279,3.66277,2730.2,2729.8,0.58291338]
[1740036471111,8.90268,2730.3,2729.8,0.58291338]
[1740036471112,3.6629,2730.1,2729.8,0.58291338]
[1740036471411,3.6629,2730.1,2729.7,0.8224]
[1740036471613,3.66303,2730.0,2729.7,0.8224]
[1740036471979,3.6629,2730.1,2729.7,0.8224]
[1740036472184,3.66327,2729.8,2729.4,0.7699]
[1740036473221,0.8274,2730.0,2729.4,0.7699]
[1740036473407,3.66321,2729.9,2729.5,0.443374]
[1740036474099,3.66327,2729.8,2729.5,0.443374]
[1740036474622,3.66321,2729.9,2729.5,0.443374]
[1740036477321,3.6634,2729.7,2729.4,0.7699]
[1740036477811,0.8274,2730.0,2729.2,0.7605]
[1740036477985,3.66338,2729.8,2729.4,0.261]
[1740036478824,3.66361,2729.6,2729.4,0.261]
[1740036479121,3.66361,2729.6,2729.3,0.261]
[1740036479827,7.32723,2729.6,2729.3,0.261]
[1740036480114,3.66361,2729.6,2729.2,0.7605]
[1740036480331,3.66377,2729.5,2729.3,0.261]
[1740036480824,4.48321,2729.6,2729.3,0.261]
[1740036481001,8.14686,2729.6,2729.3,0.261]
[1740036481203,3.66361,2729.6,2729.3,0.261]
[1740036482691,7.32725,2729.6,2729.3,0.261]
[1740036483625,3.66361,2729.6,2729.3,0.261]
[1740036483828,3.66368,2729.5,2729.3,0.261]
[1740036484033,3.66361,2729.6,2729.3,0.261]
[1740036484391,7.32723,2729.6,2729.3,0.261]
[1740036484894,3.66361,2729.6,2729.3,0.261]
[1740036485095,3.66376,2729.5,2729.3,0.261]
[1740036485623,3.66361,2729.6,2729.3,0.261]
[1740036485827,3.6638,2729.4,2729.3,0.261]
[1740036486534,3.6638,2729.4,2728.9,0.7677]
[1740036486535,3.66404,2729.3,2728.9,0.7677]
[1740036486739,3.66394,2729.3,2729.2,0.261]
[1740036488234,3.66394,2729.3,2728.9,0.7677]
[1740036488441,3.66394,2729.3,2729.1,0.261]
[1740036488834,3.6638,2729.4,2729.1,0.261]
[1740036489039,7.3277,2729.4,2729.1,0.261]
[1740036489436,3.6638,2729.4,2729.1,0.261]
[1740036489667,3.66396,2729.3,2729.1,0.261]
[1740036493061,7.32771,2729.4,2729.1,0.261]
[1740036493225,3.66395,2729.3,2729.1,0.261]
[1740036493426,3.6638,2729.4,2729.1,0.261]
[1740036493741,0.7895,2729.5,2728.7,9.0647]
[1740036493917,3.66423,2729.1,2728.7,9.0647]
[1740036494259,3.66423,2729.1,2728.8,0.261]
[1740036494806,3.66423,2729.1,2728.9,0.261]
[1740036495840,3.66397,2729.3,2728.9,0.261]
[1740036496143,5.24,2729.7,2729.4,0.8292]
[1740036496324,3.66294,2730.1,2729.5,0.449309]
[1740036496526,3.66294,2730.1,2729.5,4.112979]
[1740036496724,3.66294,2730.1,2729.5,0.449309]
[1740036496921,3.66301,2730.0,2729.5,0.449309]
[1740036497249,3.66322,2729.9,2729.4,0.8292]
[1740036497407,3.66328,2729.8,2729.4,0.8292]
[1740036497942,3.66341,2729.7,2729.4,0.8292]
[1740036500255,0.7821,2729.8,2729.4,0.8292]
[1740036500465,3.66322,2729.9,2729.4,0.8292]
[1740036500466,0.7817,2730.1,2729.4,4.49289]
[1740036500650,3.66296,2730.1,2729.6,3.66354]
[1740036500850,3.66296,2730.1,2729.8,0.8177]
[1740036501069,3.66304,2730.0,2729.8,0.8177]
[1740036501792,3.66296,2730.1,2729.8,0.8177]
[1740036503890,4.43575,2730.3,2729.8,0.8177]
[1740036504093,8.09847,2730.3,2729.8,0.8177]
[1740036504393,3.66274,2730.2,2729.8,0.8177]
[1740036506266,3.66288,2730.1,2729.7,0.261]
[1740036506687,7.32587,2730.1,2729.7,0.261]
[1740036506864,3.663,2730.0,2729.7,0.261]
[1740036507197,3.66327,2729.8,2729.7,0.261]
[1740036510200,3.66314,2729.9,2729.7,0.261]
[1740036510578,5.24,2730.2,2729.7,0.261]
[1740036510895,3.66288,2730.1,2729.8,0.7844]
[1740036512199,7.32585,2730.1,2729.8,0.7844]
[1740036512995,3.66288,2730.1,2729.8,0.7844]
[1740036513766,7.32586,2730.1,2729.8,0.7844]
[1740036514298,3.66288,2730.1,2729.8,0.7844]
[1740036514502,3.66309,2730.0,2729.8,0.7844]
[1740036515795,3.66288,2730.1,2729.8,0.7844]
[1740036516002,7.32587,2730.1,2729.8,0.7844]
[1740036516371,7.32584,2730.1,2729.8,0.7844]
[1740036516719,3.66276,2730.2,2729.8,0.7844]
[1740036518117,3.66276,2730.2,2729.8,1.255279]
[1740036518627,6.66255,2730.4,2729.9,3.66313]
[1740036518922,3.6625,2730.4,2730.0,0.7962]
[1740036520694,3.0,2730.5,2730.0,0.7962]
[1740036520900,3.0,2730.5,2730.0,4.45912]
[1740036521105,3.56542278,2730.8,2730.0,4.45912]
[1740036521106,7.46,2730.8,2730.0,4.5222239]
[1740036521309,3.66216,2730.7,2730.1,0.7947]
[1740036522604,3.6622,2730.6,2730.1,0.7947]
[1740036523727,9.68388,2731.0,2730.3,0.8091]
[1740036523940,8.90168,2731.0,2730.3,0.8091]
[1740036524095,3.66194,2730.8,2730.3,0.8091]
[1740036524291,3.66194,2730.8,2730.4,0.447171]
[1740036524491,7.32399,2730.8,2730.5,0.261]
[1740036524721,3.66219,2730.6,2730.5,0.261]
[1740036526130,3.66194,2730.8,2730.5,0.261]
[1740036526336,3.66219,2730.6,2730.5,0.261]
[1740036527130,3.66254,2730.4,2730.1,0.8126]
[1740036527317,3.66254,2730.4,2730.2,0.261]
[1740036529231,7.32511,2730.4,2730.2,0.261]
[1740036529439,3.66254,2730.4,2730.2,0.261]
[1740036529730,3.66254,2730.4,2729.8,4.134069]
[1740036529731,3.66273,2730.2,2729.8,0.756]
[1740036529929,3.66273,2730.2,2729.9,0.261]
[1740036532832,3.66287,2730.1,2729.8,0.756]
[1740036533020,3.66301,2730.0,2729.6,8.231]
[1740036533226,3.66301,2730.0,2729.9,0.261]
[1740036534333,0.7883,2730.4,2729.6,9.0371]
[1740036534532,3.66332,2729.8,2729.7,0.261]
[1740036536105,3.66306,2730.0,2729.7,0.261]
[1740036536320,3.66306,2730.0,2729.7,1.0463]
[1740036537410,5.24,2730.1,2729.7,1.0463]
[1740036537619,5.24,2730.1,2729.7,2.340381]
[1740036537839,5.24,2730.1,2729.7,6.003661]
[1740036538238,5.24,2730.1,2729.7,9.666971]
[1740036538445,5.24,2730.1,2729.7,6.003661]
[1740036538817,5.24,2730.1,2729.8,0.775]
[1740036539705,5.24,2730.1,2729.8,4.43826]
[1740036539907,5.24,2730.1,2729.8,5.4039221]
[1740036540108,5.24,2730.1,2729.9,3.66304]
[1740036540344,8.9025,2730.4,2730.0,0.83]
[1740036541266,0.8249,2730.6,2730.0,0.83]
[1740036541415,8.90217,2730.7,2730.1,0.7775]
[1740036541946,3.6622,2730.6,2730.1,0.7775]
[1740036542149,3.6622,2730.6,2730.1,1.221537]
[1740036542516,5.24,2730.7,2730.1,1.221537]
[1740036542739,5.24,2730.7,2730.3,0.8167]
[1740036544346,5.24,2730.7,2730.3,4.47927]
[1740036545249,4.46991,2731.1,2730.5,0.7686]
[1740036545438,4.46991,2731.1,2730.6,0.261]
[1740036548151,4.46982,2731.1,2730.6,3.92319]
[1740036548448,4.46982,2731.1,2730.6,0.261]
[1740036548651,5.24,2731.3,2730.7,1.300579]
[1740036548850,8.90134,2731.3,2730.7,4.49337]
[1740036549258,3.6614,2731.2,2730.7,4.49337]
[1740036550560,8.90134,2731.3,2730.7,4.49337]
[1740036550758,5.24,2731.3,2730.8,3.66192]
[1740036551526,5.24,2731.3,2730.9,3.66178]
[1740036551726,5.24,2731.3,2730.9,4.477295]
[1740036552464,5.24,2731.3,2730.9,0.815515]
[1740036553561,5.24,2731.3,2730.9,4.477295]
[1740036553932,5.24,2731.3,2730.9,0.815515]
[1740036554844,5.24,2731.3,2731.0,0.7651]
[1740036555044,5.24,2731.3,2731.0,1.2893525]
[1740036555245,3.66108,2731.5,2731.0,0.7651]
[1740036555470,3.66112,2731.4,2731.0,0.7651]
[1740036555836,9.67416,2731.6,2731.0,0.7651]
[1740036556168,3.66118,2731.4,2731.0,0.7651]
[1740036558588,3.66109,2731.5,2731.0,0.7651]
[1740036559765,3.66115,2731.4,2731.0,0.7651]
[1740036559939,3.66114,2731.4,2731.0,0.7651]
[1740036560344,3.66109,2731.5,2731.0,0.7651]
[1740036560861,3.66066,2731.8,2731.4,0.8082]
[1740036561169,3.66066,2731.8,2731.5,0.26]
[1740036562051,7.32136,2731.8,2731.5,0.26]
[1740036562759,3.66066,2731.8,2731.5,0.26]
[1740036562967,7.32136,2731.8,2731.5,0.26]
[1740036563154,3.66066,2731.8,2731.5,0.26]
[1740036563540,7.32134,2731.8,2731.5,0.26]
[1740036564075,3.66081,2731.7,2731.5,0.26]
[1740036565955,0.769,2731.6,2731.2,0.26]
[1740036566154,3.66101,2731.5,2731.2,0.26]
[1740036566966,4.42997,2731.6,2731.2,0.26]
[1740036567476,7.32134,2731.8,2731.2,0.26]
[1740036567650,3.66077,2731.7,2731.2,1.093775]
[1740036569496,3.66065,2731.8,2731.2,4.755155]
[1740036569787,3.66076,2731.7,2731.2,1.093775]
[1740036572898,3.66065,2731.8,2731.3,3.66123]
[1740036573992,3.66039,2732.0,2731.4,0.7921]
[1740036574180,3.66039,2732.0,2731.5,4.106313]
[1740036575190,5.24,2732.1,2731.6,0.7559]
[1740036575392,3.66029,2732.1,2731.6,0.7559]
[1740036576174,8.90005,2732.2,2731.6,4.41667]
[1740036577163,12.5602,2732.2,2731.6,4.41667]
[1740036577384,8.90005,2732.2,2731.7,0.8522883]
[1740036579963,8.90005,2732.2,2731.7,4.5129983]
[1740036580696,5.24,2732.2,2731.7,4.5129983]
[1740036581197,5.24,2732.2,2731.8,3.66058]
[1740036581363,5.24,2732.2,2731.8,3.66057]
[1740036581564,5.24,2732.2,2731.9,0.81735683]
[1740036581764,5.24,2732.2,2732.0,0.26]
[1740036582378,8.90005,2732.2,2732.0,0.26]
[1740036583302,5.24,2732.2,2732.0,0.26]
[1740036583496,5.24,2732.2,2732.0,1.0652]
[1740036584001,5.24,2732.2,2732.0,0.26]
[1740036584973,4.43329,2732.3,2732.0,0.26]
[1740036585172,8.0933,2732.3,2732.0,0.26]
[1740036586004,4.43329,2732.3,2732.0,0.26]
[1740036586180,7.31998,2732.3,2732.0,0.26]
[1740036586376,3.65999,2732.3,2732.0,0.26]
[1740036586594,3.66007,2732.2,2732.0,0.26]
[1740036588034,4.44629,2732.3,2732.0,0.26]
[1740036588200,8.10633,2732.3,2732.0,0.26]
[1740036588382,3.66006,2732.2,2732.0,0.26]
[1740036590105,4.44629,2732.3,2732.0,0.26]
[1740036590414,3.66018,2732.1,2732.0,0.26]
[1740036593220,3.65962,2732.6,2732.1,0.7801]
[1740036593431,1.33995116,2732.7,2732.1,1.250151]
[1740036593593,4.99968116,2732.5,2732.1,0.7801]
[1740036593795,1.33995116,2732.5,2732.1,0.7801]
[1740036594227,1.33995116,2732.5,2732.0,0.26]
[1740036594726,0.8324,2732.6,2732.0,0.26]
[1740036594902,3.65986,2732.4,2732.0,0.26]
[1740036597630,3.65986,2732.4,2732.0,0.730062]
[1740036597806,8.89967,2732.5,2732.0,0.730062]
[1740036598007,3.6598,2732.4,2732.0,0.26]
[1740036599133,8.89967,2732.5,2732.0,0.26]
[1740036600037,12.55943,2732.5,2732.0,0.26]
[1740036600330,12.55941,2732.5,2732.0,0.26]
[1740036600532,3.65986,2732.4,2732.0,0.26]
[1740036600956,6.579181,2732.5,2732.1,3.66011]
[1740036601101,5.24,2732.5,2732.0,0.26]
[1740036601301,8.89965,2732.5,2732.0,0.26]
[1740036601835,12.55939,2732.5,2732.0,0.26]
[1740036602001,5.24,2732.5,2732.1,3.66014]
[1740036602204,8.89967,2732.5,2732.0,0.26]
[1740036602401,8.89967,2732.5,2732.0,3.92021]
[1740036602402,5.24,2732.5,2732.0,3.92021]
[1740036602603,8.89966,2732.5,2732.0,0.26]
[1740036603140,5.24,2732.5,2732.1,3.66017]
[1740036603430,5.24,2732.5,2732.1,4.49623]
[1740036603633,5.24,2732.5,2732.0,0.26]
[1740036603827,8.89972,2732.5,2732.0,0.26]
[1740036605561,5.24,2732.5,2732.0,0.26]
[1740036605771,5.24,2732.5,2732.0,3.92023]
[1740036606663,8.89967,2732.5,2732.0,0.26]
[1740036606834,5.24,2732.5,2732.0,1.09608]
[1740036607109,5.24,2732.5,2732.1,4.42999]
[1740036608245,8.89972,2732.5,2732.1,0.7699]
[1740036608429,9.73032,2732.5,2732.1,0.7699]
[1740036608635,9.73032,2732.5,2732.0,0.26]